Cogmind - Beta 10.2 @@@ ROGUE MODE // 2021.03.23 @ 02:52:55 Player: leiavoia Result: Destroyed by S-27 Virus with Autogun Performance ------------- Evolutions (3) 1500 Regions Visited (5) 1000 Robots Destroyed (33) 165 Value Destroyed (1010) 1010 Prototype IDs (5) 100 Alien Tech Used (0) 0 Bonus (0) 0 TOTAL SCORE: 3775 Bonus ------- None Cogmind --------- Core Integrity 0/700 Matter 148/300 Energy 62/100 System Corruption 3% Temperature Cool (0) Movement Core (50) Location -7/Storage Parts ------- > --- POWER (1) -------- (None) > --- PROPULSION (3) --- (None) > --- UTILITY (6) ------ (None) > --- WEAPON (3) ------- (None) > --- INVENTORY (4) ---- Improved Heat Sink Large Storage Unit Terrain Scanner Maul Peak State ------------ > --- POWER ------------ Light Nuclear Core > --- PROPULSION ------- Light Treads Light Treads Light Treads > --- UTILITY ---------- Improved Heat Sink Improved Cooling System Large Storage Unit Large Storage Unit Improved Sensor Array Core Analyzer > --- WEAPON ----------- Improved Spread Laser Precision Assault Rifle Maul > --- INVENTORY -------- Wheel Wheel Medium Storage Unit Large Storage Unit Large Storage Unit Advanced Terrain Scanner Improved Field Recycling Unit Drone Bay Particle Gun Spread Laser Autogun Autogun Autogun Light Cannon Advanced EMP Blaster Grenade Launcher [Rating: 36] Favorites ----------- Power Ion Engine Engine Ion Engine Power Core Light Nuclear Core Propulsion Light Treads Treads Light Treads Wheel Wheel Utility Large Storage Unit Device Improved Sensor Array Storage Large Storage Unit Processor Core Analyzer Protection Light Armor Plating Weapon Autogun Energy Gun Improved Spread Laser Ballistic Gun Autogun Launcher Grenade Launcher Impact Weapon Maul Build | -11 -10 -9 -8 -7 -7 ------- Run | Scr Mat Mat Mat Fac Sto Slots Evolved 6 | . . 2 2 2 . Power . | . . . . . . Propulsion 1 | . . . 1 . . Utility 4 | . . 1 1 2 . Weapon 1 | . . 1 . . . Parts Attached 59 | 6 14 10 6 9 14 Power 4 | 1 1 1 . 1 . Engine 3 | 1 1 1 . . . Core 1 | . . . . 1 . Reactor . | . . . . . . Propulsion 11 | 2 2 2 2 1 2 Treads 8 | 2 1 2 2 1 . Leg . | . . . . . . Wheel 3 | . 1 . . . 2 Hover . | . . . . . . Flight . | . . . . . . Utility 18 | 1 4 1 3 5 4 Device 7 | . 1 . . 3 3 Storage 6 | 1 2 1 2 . . Processor 3 | . 1 . . 1 1 Hackware . | . . . . . . Protection 2 | . . . 1 1 . Artifact . | . . . . . . Weapon 26 | 2 7 6 1 2 8 Energy Gun 7 | . 1 3 . . 3 Energy Cannon . | . . . . . . Ballistic Gun 13 | 2 6 2 1 1 1 Ballistic Cannon . | . . . . . . Launcher 2 | . . . . . 2 Special Weapon . | . . . . . . Impact Weapon 4 | . . 1 . 1 2 Slashing Weapon . | . . . . . . Piercing Weapon . | . . . . . . Special Melee Weapon . | . . . . . . Unidentified Prototypes 3 | . . . . . 3 Parts Lost 22 | . 1 3 . 5 13 Power 2 | . . 1 . . 1 Propulsion 6 | . . . . 1 5 Utility 6 | . . . . 4 2 Weapon 8 | . 1 2 . . 5 Highest Loss Streak 13 | . 1 2 . 3 13 Average Slot Usage (%) 95 | . 90 99 100 95 92 Engine 8 | . 14 11 9 4 . Core 1 | . . . . 2 6 Treads 21 | . 21 19 27 23 20 Wheel 1 | . 4 2 . . . Device 10 | . 4 11 9 15 17 Storage 17 | . 14 22 18 15 14 Processor 3 | . 5 . . 1 10 Protection 2 | . . . 9 9 . Energy Gun 2 | . 1 3 . . 5 Ballistic Gun 21 | . 24 23 27 22 8 Impact Weapon 2 | . . 5 . . 2 Naked Turns 14 | . . . . . 14 Heaviest Build 54 | 9 28 47 50 54 52 Greatest Support 60 | 40 40 40 60 60 60 Greatest Overweight (x) 4 | . 2 4 . . 4 Average Overweight (x) . | . . 2 . . . Largest Inventory Capacity 16 | 6 10 16 16 16 16 Average Capacity 13 | 5 6 15 16 16 15 Most Carried 16 | 3 10 16 16 15 16 Average Carried 11 | 1 4 12 14 13 14 Final Capacity 16 | 6 10 16 16 16 4 Final Carried 16 | 3 10 15 16 14 4 Class Distribution -------------------- 56% | Mutant 14% | Skirmisher 10% | Tank 9% | Scavenger-Tank 7% | Gunner Dominant Class ---------------- Mutant | -10/Materials Mutant | -9/Materials Tank | -8/Materials Scavenger-Tank | -7/Factory Mutant | -7/Storage Resources | -11 -10 -9 -8 -7 -7 ----------- Run | Scr Mat Mat Mat Fac Sto Matter Collected 1276 | 260 135 455 233 163 30 Remotely 163 | . . . . 163 . Salvage Created 1358 | . 271 624 233 163 67 Parts 72 | . 18 29 12 3 10 Haulers Intercepted 3 | . 1 1 1 . . Recyclers Shooed 1 | . . 1 . . . Parts Field Recycled . | . . . . . . Retrieved Matter . | . . . . . . Parts Self-Destructed . | . . . . . . Prevented . | . . . . . . Kills | -11 -10 -9 -8 -7 -7 ------- Run | Scr Mat Mat Mat Fac Sto Combat Hostiles Destroyed 25 | . 6 12 3 3 1 Guns 24 | . 6 11 3 3 1 AOE 1 | . . 1 . . . Classes Destroyed 9 | . 4 2 2 . 1 Builder 2 | . . . . . 2 Hauler 3 | . 1 1 1 . . Recycler 1 | . . . 1 . . Watcher 2 | . 1 1 . . . Swarmer 3 | . 3 . . . . Grunt 16 | . 3 8 2 3 . Brawler 2 | . . 2 . . . Sentry 3 | . . 2 . . 1 Hunter 1 | . . . 1 . . Best Kill Streak 6 | . 3 6 2 3 3 Combat Bots Only 6 | . 3 6 2 3 1 Max Kills in Single Turn 1 | . 1 1 1 1 1 Gunslinging . | . . . . . . Exploded 1 | . . 1 . . . Melee . | . . . . . . Uniques/NPCs Destroyed . | . . . . . . Combat | -11 -10 -9 -8 -7 -7 -------- Run | Scr Mat Mat Mat Fac Sto Damage Taken 3302 | . 345 706 278 345 1628 Core 973 | . 73 144 56 . 700 Absorbed by Shields . | . . . . . . Core Remaining (%) 80 | 100 70 64 89 . . Volleys Fired 99 | . 27 39 16 8 9 Largest 3 | . 2 3 3 3 3 Hottest 170 | . 70 86 69 69 170 Shots Fired 243 | . 54 98 48 23 20 Gun 238 | . 54 98 48 23 15 Cannon . | . . . . . . Launcher 5 | . . . . . 5 Special . | . . . . . . Kinetic 198 | . 43 77 48 23 7 Thermal 19 | . 11 . . . 8 Explosive 5 | . . . . . 5 Electromagnetic 21 | . . 21 . . . Robot Hit Streak 18 | . 6 18 10 6 12 Robot Miss Streak 7 | . 2 4 7 2 5 Penetration Max . | . . . . . . Secondary Targets 2 | . . 1 1 . . Max Gunslinging Chain 1 | . . 1 1 . . Shots Hit Robots 169 | . 37 76 31 15 10 Core Hits 69 | . 14 23 10 7 15 Critical Hits . | . . . . . . Critical Kills . | . . . . . . Critical Parts Destroyed . | . . . . . . Melee Attacks 26 | . . 19 . 2 5 Impact 26 | . . 19 . 2 5 Slashing . | . . . . . . Piercing . | . . . . . . Sneak Attacks . | . . . . . . Combat Hostiles . | . . . . . . Follow-up Attacks . | . . . . . . Damage Inflicted 2567 | . 349 1277 385 162 394 Guns 2197 | . 349 1153 375 162 158 Cannons . | . . . . . . Explosions 358 | . . 122 . . 236 Melee . | . . . . . . Ramming 12 | . . 2 10 . . Kinetic 1764 | . 263 936 375 162 28 Thermal 338 | . 86 122 . . 130 Explosive 236 | . . . . . 236 Electromagnetic 217 | . . 217 . . . Impact . | . . . . . . Slashing . | . . . . . . Piercing . | . . . . . . Highest Corruption 3 | . . . . 3 3 Average Corruption 2 | . . . . 2 3 Corruption Purged . | . . . . . . Effects 14 | . . . . 5 9 Message Errors 6 | . . . . 1 5 Matter Fused 2 | . . . . . 2 Heat Flow Errors 1 | . . . . . 1 Data Loss (minor) 4 | . . . . 3 1 Weapon Failures 1 | . . . . 1 . Overload Shots . | . . . . . . Overflow Damage 15 | . . . . . 15 Projectiles . | . . . . . . Explosions 15 | . . . . . 15 Melee . | . . . . . . Knockbacks . | . . . . . . Impact . | . . . . . . Kinetic . | . . . . . . Secondary . | . . . . . . Self-Inflicted Damage 82 | . . . . . 82 Shots 3 | . . . . . 3 Rammed 2 | . . 1 . . 1 Targets Rammed 3 | . . 1 1 . 1 Kicked . | . . . . . . Crushed 1 | . . . 1 . . Highest Temperature 274 | . 150 214 52 60 274 Average Temperature 59 | . 48 64 25 30 132 Received Heat Transfer 1155 | . 102 312 75 117 549 Effects 1 | . . 1 . . . Interference 1 | . . 1 . . . Siege Activations . | . . . . . . Robots Corrupted . | . . . . . . Combat Hostiles . | . . . . . . Parts Fried . | . . . . . . Impact Corruptions . | . . . . . . Robots Melted . | . . . . . . Combat Hostiles . | . . . . . . Parts Melted 1 | . 1 . . . . Heat Transferred 563 | . 259 150 . . 154 Parts Sabotaged . | . . . . . . Parts Stolen . | . . . . . . Parts Stripped . | . . . . . . Power Chain Reactions 2 | . . 2 . . . Missiles Intercepted . | . . . . . . Alert | -11 -10 -9 -8 -7 -7 ------- Run | Scr Mat Mat Mat Fac Sto Peak Influence 335 | . 187 335 236 164 131 Initial 113 | . . 11 113 107 65 Average 93 | . 70 82 174 128 86 Maximum Alert Level 1 | . . 1 1 . . Low Security (%) 90 | 100 100 82 62 100 100 Level 1 9 | . . 17 37 . . Level 2 . | . . . . . . Level 3 . | . . . . . . Level 4 . | . . . . . . Level 5 . | . . . . . . High Security . | . . . . . . Max Security . | . . . . . . Squads Dispatched 6 | . 1 1 2 1 1 Investigation 1 | . 1 . . . . Extermination . | . . . . . . Reinforcement 4 | . . 1 1 1 1 Assault . | . . . . . . Garrison 1 | . . . 1 . . Intercept . | . . . . . . Construction Impeded . | . . . . . . Haulers Reinforced . | . . . . . . Stealth | -11 -10 -9 -8 -7 -7 --------- Run | Scr Mat Mat Mat Fac Sto Distress Signals 5 | . . 3 2 . . Communications Jammed . | . . . . . . Distress Signals . | . . . . . . Times Spotted 66 | . 9 23 10 5 19 Peak Tracking Total 14 | . 3 6 4 3 14 Tactical Retreats 6 | . . 6 . . . Traps | -11 -10 -9 -8 -7 -7 ------- Run | Scr Mat Mat Mat Fac Sto Traps Triggered 9 | . 4 . 1 4 . Indirectly . | . . . . . . Trap Hack Attempts . | . . . . . . Triggered . | . . . . . . Disarmed . | . . . . . . Reprogrammed . | . . . . . . Reused . | . . . . . . Traps Extracted . | . . . . . . Installed . | . . . . . . Triggered . | . . . . . . Machines | -11 -10 -9 -8 -7 -7 ---------- Run | Scr Mat Mat Mat Fac Sto Machines Disabled 2 | . . 1 . . 1 Max in Single Turn 1 | . . 1 . . 1 Machines Sabotaged . | . . . . . . Garrisons Compromised . | . . . . . . Overloaded Fab Kills . | . . . . . . Fab Network Shutdowns . | . . . . . . Hacking | -11 -10 -9 -8 -7 -7 --------- Run | Scr Mat Mat Mat Fac Sto Machines Accessed 7 | . 3 1 . 1 2 Terminals 6 | . 3 1 . . 2 Fabricators . | . . . . . . Repair Stations . | . . . . . . Recycling Units 1 | . . . . 1 . Scanalyzers . | . . . . . . Garrison Access . | . . . . . . Total Hacks 10 | . 5 1 . 2 2 Successful 6 | . 3 1 . . 2 Failed 4 | . 2 . . 2 . Catastrophic 1 | . . . . 1 . Database Lockouts . | . . . . . . Manual 1 | . 1 . . . . Terminals 8 | . 5 1 . . 2 Fabricators . | . . . . . . Repair Stations . | . . . . . . Recycling Units 2 | . . . . 2 . Scanalyzers . | . . . . . . Garrison Access . | . . . . . . Terminal Hacks 6 | . 3 1 . . 2 Prototype ID Bank 1 | . 1 . . . . Open Door 2 | . . . . . 2 Hauler Manifests 1 | . . 1 . . . Registered Components 1 | . 1 . . . . Zone Layout 1 | . 1 . . . . Fabricator Hacks . | . . . . . . Repair Station Hacks . | . . . . . . Recycling Unit Hacks . | . . . . . . Scanalyzer . | . . . . . . Garrison Access Hacks . | . . . . . . Unauthorized Hacks . | . . . . . . Terminals . | . . . . . . Fabricators . | . . . . . . Repair Stations . | . . . . . . Recycling Units . | . . . . . . Scanalyzers . | . . . . . . Garrison Access . | . . . . . . Data Cores Recovered . | . . . . . . Used . | . . . . . . Hacking Detections 5 | . 3 1 . 1 . Full Trace Events . | . . . . . . Feedback Events . | . . . . . . Feedback Blocked . | . . . . . . Robot Schematics Acquired . | . . . . . . Robots Built . | . . . . . . Matter . | . . . . . . Time . | . . . . . . Total Robot Build Rating . | . . . . . . Part Schematics Acquired . | . . . . . . Parts Built . | . . . . . . Matter . | . . . . . . Time . | . . . . . . Total Part Build Rating . | . . . . . . Parts Repaired . | . . . . . . Time . | . . . . . . Parts Recycled . | . . . . . . Recycled Matter . | . . . . . . Retrieved Matter . | . . . . . . Retrieved Components . | . . . . . . Parts Scanalyzed . | . . . . . . Part Schematics Acquired . | . . . . . . Parts Damaged . | . . . . . . Bothacking | -11 -10 -9 -8 -7 -7 ------------ Run | Scr Mat Mat Mat Fac Sto Used RIF Installer . | . . . . . . Robots Hacked . | . . . . . . Non-combat . | . . . . . . Combat . | . . . . . . Robot Hacks Applied . | . . . . . . Relay Couplers Released . | . . . . . . Robots Rewired . | . . . . . . Allies Hacked . | . . . . . . Hacks Repelled . | . . . . . . Allies | -11 -10 -9 -8 -7 -7 -------- Run | Scr Mat Mat Mat Fac Sto Total Allies . | . . . . . . Largest Group . | . . . . . . Highest-Rated Group . | . . . . . . Highest-Rated Ally . | . . . . . . Total Orders . | . . . . . . Ally Attacks . | . . . . . . Total Damage . | . . . . . . Kills . | . . . . . . Allies Corrupted . | . . . . . . Allies Melted . | . . . . . . Intel | -11 -10 -9 -8 -7 -7 ------- Run | Scr Mat Mat Mat Fac Sto Robot Analysis Total . | . . . . . . Derelict Logs Recovered . | . . . . . . Drone Launches . | . . . . . . Drone Recoveries . | . . . . . . Exploration | -11 -10 -9 -8 -7 -7 ------------- Run | Scr Mat Mat Mat Fac Sto Turns Passed 2561 | 88 582 865 268 333 425 Spaces Moved 1216 | 49 360 328 135 177 167 Core 28 | 1 . . . . 27 Treads 901 | 48 204 209 135 177 128 Legs . | . . . . . . Wheels 287 | . 156 119 . . 12 Hover . | . . . . . . Flight . | . . . . . . Fastest Speed 50 | 50 90 120 160 160 50 Average Speed 147 | 157 130 158 160 160 138 Slowest Speed 200 | 160 160 200 160 160 200 Overloaded Moves . | . . . . . . Propulsion Burnouts . | . . . . . . Robots Hopped . | . . . . . . Cave-ins Triggered . | . . . . . . Exploration Rate (%) 28 | 5 65 35 22 6 36 Regions Visited 5 Branch Regions 1 Pre-discovered Areas . | . . . . . . Known Exits Taken . | . . . . . . Unknown Exits Taken 5 | 1 1 1 1 1 . Scrap Searched . | . . . . . . Spaces Dug 22 | . . 18 . 2 2 Terrain Destroyed 54 | . . 26 . 2 26 Melee 22 | . . 18 . 2 2 Projectile . | . . . . . . AOE 32 | . . 8 . . 24 Terrain Rammed . | . . . . . . Walls Destroyed . | . . . . . . Machines Disabled . | . . . . . . Actions | -11 -10 -9 -8 -7 -7 --------- Run | Scr Mat Mat Mat Fac Sto Total 1750 | 57 423 568 160 207 335 Wait 305 | . 7 160 . 10 128 Move 1211 | 48 359 327 134 176 167 Hop . | . . . . . . Pick Up 29 | 3 10 9 2 1 4 Fast Attach 22 | 6 6 1 . 4 5 Attach 18 | . 3 4 3 3 5 Detach 4 | . . 1 . . 3 Swap 19 | . 5 5 3 2 4 Drop 14 | . 6 2 1 1 4 Fire 99 | . 27 39 16 8 9 Melee 26 | . . 19 . 2 5 Ram 1 | . . . . . 1 Kick . | . . . . . . Crush 2 | . . 1 1 . . Escape Stasis . | . . . . . . Rewire . | . . . . . . Trap . | . . . . . . Miscellaneous . | . . . . . . Route ------- -11/Scrapyard -10/Materials (discovered 3 exits: *Mat x3) -9/Materials -8/Materials -7/Factory -7/Storage History --------- Turn | Location | Event 33 | -11/Scrapyard | Discovered new exit (range 16) 89 | -11/Scrapyard | Entered Materials 177 | -10/Materials | Discovered new exit (range 15) 305 | -10/Materials | Build established: Mutant 468 | -10/Materials | Discovered new exit (range 14) 657 | -10/Materials | Discovered new exit (range 8) 671 | -10/Materials | Entered another Materials area 671 | -9/Materials | Evolved 2 slots: Utility x1, Weapon x1 1518 | -9/Materials | Discovered new exit (range 10) 1536 | -9/Materials | Entered another Materials area 1536 | -8/Materials | Evolved 2 slots: Propulsion x1, Utility x1 1755 | -8/Materials | Garrison activated, responded to threat 1792 | -8/Materials | Discovered new exit (range 8) 1804 | -8/Materials | Entered Factory 1804 | -7/Factory | Evolved 2 slots: Utility x2 2025 | -7/Factory | Lost 3 parts (1n2u) 2073 | -7/Factory | Discovered new exit (range 4) 2137 | -7/Factory | Entered Storage 2542 | -7/Storage | Core integrity fell below 50% 2542 | -7/Storage | Released all parts (5) 2558 | -7/Storage | Core integrity fell below 20% 2562 | -7/Storage | Destroyed by S-27 Virus with Autogun Last Messages --------------- 02541_ Adv. EMP Blaster destroyed. 02542_ Released Lrg. Storage Unit. 02542_ Released Core Analyzer. 02542_ Released Adv. Signal Interpreter. 02542_ Released Imp. Cooling System. 02543_ K-01 Serf collects debris. 02543_ R-06 Scavenger collects Imp. Medium Laser. 02550_ K-01 Serf destroyed. 02552_ Connecting with Door Terminal... >>Open Sealed Heavy Doors opened. 02553_ K-01 Serf collects debris. 02554_ Acquired Wheel. 02555_ Acquired 21 matter. 02558_ K-01 Serf collects debris. 02559_ Slammed into G-47 Trooper. 02559_ Wheel permanently disabled. 02559_ Destabilizing: Short circuit. 02560_ Broken Wheel destroyed. 02561_ K-01 Serf collects debris. Map ----- +----------------------------------------------------+ | ????????? ????# ## ### !#? | | ??????????????# ## ###!! !!## | | ????????"?????# ## #?#!!! !!#? | | ?????????"? ?# ## ##########? | | ????????????? + " #?????????? | | ??????????????# ## #???#?????? | | ??????????? ??# ###########??#?#???? | | ???????? ????# #?????#??"?????#???? | | ????????????? # #?????????? ???????? | | ????????#?????# ###???????? ? ?????# | | ?????????? ??# #T####?????????#???? | | ??????????????# " !!#????? ?????? ? | | ??????????????# # !!##???"?? ?#? ?? | | ??????????????# # !!#? ???????????? | | ??????????????# #?####????"????????? | | ??????????????# #???????? ??#???? | | ??????????????# #?#??#?????????????? | | ??????????????# #????#??###????????? | | ??????????????# #???#???????????##?? | | ??????????????# ss#??????????#?????#?? | | ??????????????# s#??????????????????? | | ??????????????#a w#??????????????????? | | ???????????#+##gsg##########?????????? | | ???????????# "???????? | | ???????????# u kT???????? | | ???????????# @ a ??????? | | ???????????# ###k######+#### ??????? | | ???????????# ??# #???????????????????? | | ???????????#???#+#???????????????????? | | ??????????????? #???????????????????? | | ??????????????? #???????????????????? | | ??????????????? #???????????????????? | | ??????????????? #???????????????????? | | ???????????????? ????????????????????? | | ?????????????????????????????????????? | | ?????????????????????????????????????? | | ?????????????????????????????????????? | | ?????????????????????????????????????? | | ?????????????????????????????????????? | | ?????????????????????????????????????? | | ?????????????????????????????????????? | | ?????????????????????????????????????? | | ?????????????????????????????????????? | | ?????????????????????????????????????? | | ?????????????????????????????????????? | | ?????????????????????????????????????? | | ?????????????????????????????????????? | | ?????????????????????????????????????? | | ?????????????????????????????????????? | | | +----------------------------------------------------+ Best States ------------- Heat Dissipation 75 Energy Generation 14 Energy Capacity 250 Matter Stores 300 Matter Capacity 300 Sight Range 16 Robot Scan Range 13 Terrain Scan Range 24 Terrain Scan Density 10 Armor Coverage 300 Evasion (%) 50 Core Analysis 6 Recoil Reduction 3 Item Schematics ----------------- None Robot Schematics ------------------ None Fabricated ------------ Nothing Alien Tech Used ----------------- None Achievements -------------- None Challenges ------------ None Game ------ Seed BackupSupercompositeHammer Manual? 0 Play Time 00:30:30 Cumulative 372.0 hours Start 2021.03.23 @ 02:24:17 End 2021.03.23 @ 02:52:55 Sessions 1 Manual Loads 0 Difficulty Rogue Special Mode None Game No. 46 Rogue 15 Adventurer 31 Explorer 0 Win Type - Total 20 Types 15/0/2/3/0/0/0/0/0 Lore% 59 Gallery% 74 Achievement% 56 Wizard Run 0 Options --------- ASCII 0 Keyboard 0 Movement Arrows Keybinds 0 Fullscreen 1 Font 20/Terminus Map View 66x50 Tactical HUD 1 Map Filters NONE Filters NONE Steam 1 RUN: 50a1f8ad-432f-483f-9093-c0117ccac7d9